bitfinex-derivatives/quotes_ETHF0:USTF0_20240901
["timestamp","ask_amount","ask_price","bid_price","bid_amount"]
[1725199691961,3.2078,2451.6,2451.0,0.408]
[1725199692172,0.40787,2451.9,2451.1,3.2078]
[1725199692552,3.2078,2452.0,2451.1,3.39554864]
[1725199692553,0.40788,2451.8,2451.1,3.39554864]
[1725199692749,0.00611945,2451.7,2451.4,0.40795]
[1725199692951,0.00611945,2451.7,2451.5,3.2078]
[1725199693247,3.2078,2452.6,2451.6,3.2078]
[1725199693452,3.2078,2452.9,2451.9,3.2078]
[1725199693855,3.2078,2453.2,2452.2,3.2078]
[1725199694053,3.2078,2453.5,2452.5,3.2078]
[1725199694259,3.2078,2453.3,2452.5,3.2078]
[1725199694462,0.00611945,2453.1,2452.8,3.2078]
[1725199694663,0.00611945,2453.1,2452.9,3.2078]
[1725199694960,0.00611945,2453.1,2452.7,0.00611945]
[1725199694961,0.00611945,2453.1,2452.7,0.19386809]
[1725199695153,0.00611945,2453.1,2452.7,3.40166809]
[1725199695353,0.00611945,2453.1,2452.7,7.88618809]
[1725199695561,0.00611945,2453.1,2452.9,3.2078]
[1725199695860,0.00611945,2453.1,2453.0,0.40768]
[1725199696061,0.00611945,2453.1,2453.0,10.02336061]
[1725199696265,0.00611945,2453.1,2453.0,16.02336061]
[1725199696563,0.00611945,2453.1,2453.0,10.02336061]
[1725199696860,3.2078,2453.9,2453.0,15.42793197]
[1725199697061,3.2078,2454.2,2453.5,0.40759]
[1725199697262,0.79995,2454.4,2453.6,3.2078]
[1725199697466,0.3925,2454.4,2453.6,3.2078]
[1725199697768,0.00611945,2454.2,2453.7,3.2078]
[1725199697967,0.00611945,2454.2,2453.6,0.59530864]
[1725199698264,0.00611945,2454.2,2453.6,0.59532864]
[1725199698468,0.00611945,2454.2,2453.7,3.2078]
[1725199698654,0.00611945,2454.2,2453.6,0.18774864]
[1725199698655,0.40751,2454.0,2453.6,0.18774864]
[1725199698857,4.52842834,2454.1,2453.6,0.18774864]
[1725199699074,3.21391945,2454.2,2453.6,7.47074864]
[1725199699367,3.21391945,2454.2,2453.7,5.20890574]
[1725199699555,0.00611945,2454.2,2454.1,0.4075]
[1725199699755,0.00611945,2454.2,2453.9,3.2078]
[1725199699756,0.00611945,2454.2,2454.0,0.40751]
[1725199700064,0.00611945,2454.2,2453.9,0.18774864]
[1725199701671,0.00611945,2454.2,2454.0,0.4075]
[1725199701966,0.00611945,2454.2,2454.1,0.4075]
[1725199702170,0.00611945,2454.2,2454.1,9.89343598]
[1725199702367,0.00611945,2454.2,2454.1,9.67368462]
[1725199702669,0.00611945,2454.2,2454.1,4.66964864]
[1725199703174,3.2078,2454.8,2454.4,0.40744]
[1725199703679,3.2078,2455.3,2454.7,3.2078]
[1725199703860,3.6151,2455.3,2454.7,3.2078]
[1725199704057,3.2078,2455.3,2454.7,3.39554864]
[1725199704262,0.00392538,2455.2,2454.8,0.00611945]
[1725199704459,3.61516,2454.9,2454.8,0.00611945]
[1725199704666,3.2078,2454.9,2454.8,0.00611945]
[1725199704863,7.68876,2454.9,2454.8,0.00611945]
[1725199705372,4.09612,2454.9,2454.8,0.00611945]
[1725199705666,10.09612,2454.9,2454.8,0.00611945]
[1725199706265,9.68876,2454.9,2453.9,3.2078]
[1725199706471,1.01846,2454.8,2454.2,0.38484]
[1725199706679,4.27381712,2454.9,2453.6,3.2078]
[1725199706680,0.40751,2454.0,2453.6,3.2078]
[1725199706862,0.4075,2454.1,2453.9,0.38484]
[1725199707060,0.4075,2454.1,2454.0,0.38484]
[1725199707259,3.2078,2454.3,2454.0,0.38484]
[1725199707461,3.2078,2455.1,2454.2,0.79232]
[1725199707671,3.2078,2455.1,2454.7,0.38484]
[1725199707966,0.40743,2454.5,2454.4,0.38484]
[1725199708158,1.0185,2454.7,2453.7,3.2078]
[1725199708365,0.4075,2454.1,2454.0,0.38484]
[1725199708660,0.40753,2454.0,2453.8,0.39095945]
[1725199708864,1.01841,2455.0,2453.8,0.39095945]
[1725199708865,0.40753,2453.9,2453.8,0.39095945]
[1725199709268,4.22647,2454.3,2453.8,0.39095945]
[1725199709269,0.40746,2454.3,2453.8,0.57870809]
[1725199709472,40.8,2454.5,2454.2,0.38484]
[1725199709664,0.40744,2454.5,2454.4,0.38484]
[1725199710168,0.40739,2454.8,2454.4,3.59264]
[1725199710475,0.3818,2454.9,2454.6,0.38484]
[1725199710670,0.4074,2454.7,2454.6,0.38484]
[1725199710867,3.2078,2455.0,2454.8,0.38484]
[1725199711074,3.61516,2455.0,2454.9,0.38484]
[1725199711371,3.61516,2455.0,2454.2,3.2078]
[1725199711372,0.40738,2454.8,2454.7,0.38484]
[1725199712670,0.40737,2454.9,2454.7,0.38484]
[1725199712875,0.40738,2454.8,2454.7,0.38484]
[1725199713578,0.40746,2454.3,2454.2,3.2078]
[1725199713769,5.09206,2454.8,2454.2,0.38484]
[1725199713770,1.01857,2454.6,2454.2,0.38484]
[1725199713968,3.2078,2454.7,2454.2,0.38484]
[1725199713969,0.40746,2454.3,2454.2,0.38484]
[1725199714169,0.40752,2454.0,2453.6,3.2078]
[1725199714477,0.40752,2454.0,2453.8,0.19386809]
[1725199714782,0.40753,2453.9,2453.8,0.00611945]
[1725199715080,4.068,2453.7,2451.4,3.2078]
[1725199715271,3.2078,2452.4,2451.4,3.39554864]
[1725199715471,0.40781,2452.2,2451.6,5.27458102]
[1725199715672,0.40782,2452.2,2451.4,3.39554864]
[1725199715874,4.37519633,2452.3,2451.6,0.41401945]
[1725199715875,0.00611945,2452.0,2451.6,0.41401945]
[1725199716178,0.00611945,2452.0,2451.6,0.00611945]
[1725199716367,0.00611945,2452.0,2451.6,0.60176809]
[1725199716567,4.0784,2451.9,2451.6,0.00611945]
[1725199716874,4.0784,2451.9,2451.1,0.408]
[1725199716875,7.80016765,2451.9,2450.8,3.2078]
[1725199717179,7.80016765,2451.9,2450.9,0.40803]
[1725199717180,0.40791,2451.7,2450.9,0.40803]
[1725199717379,4.59236765,2451.9,2450.9,5.20754925]
[1725199717680,0.00611945,2452.0,2451.4,0.40793]
[1725199718067,0.00611945,2452.0,2451.4,0.18774864]
[1725199718579,0.00611945,2452.0,2451.4,3.80347864]
[1725199718774,0.00611945,2452.0,2451.4,0.59567864]
[1725199719085,0.00611945,2452.0,2451.5,0.40793]
[1725199719269,0.00611945,2452.0,2451.5,8.74531359]
[1725199719578,0.00611945,2452.0,2451.6,0.4079]
[1725199719877,0.00611945,2452.0,2451.9,3.2078]
[1725199720271,3.2078,2453.0,2451.9,18.69604652]
[1725199720470,1.04201357,2453.6,2452.2,3.2078]
[1725199720471,0.4077,2452.9,2452.2,3.2078]
[1725199720683,7.74760932,2453.1,2451.9,5.59759516]
[1725199720980,0.40768,2453.0,2452.2,5.59522975]
[1725199721178,0.00611945,2452.8,2452.4,0.00611945]
[1725199721482,0.00611945,2452.8,2452.4,0.19386809]
[1725199722174,0.40776,2452.5,2452.4,0.19386809]
[1725199722374,0.40776,2452.5,2452.4,0.00611945]
[1725199722569,4.48536,2452.5,2452.4,0.00611945]
[1725199723078,3.21391945,2452.8,2452.4,0.00611945]
[1725199723271,3.21391945,2452.8,2452.4,0.19386809]
[1725199723673,0.00611945,2452.8,2452.4,0.19386809]
[1725199723972,0.00611945,2452.8,2452.5,5.24487729]
[1725199724171,0.00611945,2452.8,2452.5,5.43262593]
[1725199724877,0.00611945,2452.8,2452.6,3.2078]
[1725199725179,0.00611945,2452.8,2452.5,0.18774864]
[1725199725980,0.40774,2452.7,2452.5,0.18774864]
[1725199726385,0.41383945,2452.8,2452.5,0.18774864]
[1725199726580,0.00611945,2452.8,2452.5,0.18774864]
[1725199726978,0.00611945,2452.8,2452.5,4.26534864]
[1725199727479,0.00611945,2452.8,2452.7,3.2078]
[1725199727779,3.2078,2453.5,2452.7,3.61553]
[1725199727780,3.61541,2453.5,2452.7,3.61553]
[1725199728079,0.40758,2453.6,2453.0,3.2078]
[1725199728277,0.40758,2453.6,2452.8,0.4077]
[1725199728278,4.52297699,2453.4,2452.8,3.61551]
[1725199728472,4.52297699,2453.9,2452.8,3.39554864]
[1725199728671,3.2078,2454.0,2452.9,5.3214977]
[1725199728873,0.4076,2453.6,2452.9,5.3214977]
[1725199729083,0.00611945,2453.7,2452.9,5.50924634]
[1725199729278,4.70895278,2453.5,2452.9,5.50924634]
[1725199729474,0.00611945,2453.7,2452.9,5.50924634]
[1725199729689,0.40759,2453.6,2452.9,5.50924634]
[1725199729881,0.00611945,2453.7,2452.9,5.50924634]
[1725199730184,5.57497686,2453.5,2452.9,0.18774864]
[1725199730375,0.40766,2453.2,2452.9,0.18774864]
[1725199730882,0.40766,2453.1,2452.9,0.18774864]
[1725199731282,0.40766,2453.2,2452.9,0.18774864]
[1725199731682,0.40767,2453.1,2452.9,0.18774864]
[1725199732575,4.62995045,2453.4,2452.9,0.18774864]
[1725199732777,0.40768,2453.1,2452.9,0.18774864]
[1725199732973,0.40768,2453.0,2452.9,0.18774864]
[1725199733178,0.40776,2452.6,2452.4,0.00611945]
[1725199733887,0.40772,2452.8,2452.4,0.19386809]
[1725199734077,0.40773,2452.7,2452.4,0.19386809]
[1725199734675,0.40773,2452.8,2452.4,0.19386809]
[1725199734880,0.40774,2452.7,2452.4,0.19386809]
[1725199735385,0.40771,2452.9,2452.4,0.19386809]
[1725199735585,4.2269,2453.3,2452.4,0.19386809]
[1725199735887,4.65590523,2452.8,2452.4,0.19386809]
[1725199736183,0.40776,2452.5,2452.4,0.00611945]
[1725199736389,1.42717,2452.5,2452.4,0.00611945]
[1725199736687,11.50477,2452.5,2452.4,9.45e-06]
[1725199736885,15.40365904,2452.5,2452.4,9.45e-06]
[1725199737206,4.48536,2452.5,2452.4,9.45e-06]
[1725199737389,3.2078,2452.7,2452.4,4.26535809]
[1725199737585,3.2078,2452.7,2452.4,0.18775809]
[1725199737986,0.40776,2452.6,2452.4,9.45e-06]
[1725199738182,3.2078,2452.7,2452.4,9.45e-06]
[1725199738384,3.2078,2452.7,2452.4,0.18775809]
[1725199738587,0.4077,2452.9,2452.4,0.59552809]
[1725199738783,0.40769,2453.0,2452.4,0.59552809]
[1725199739091,4.35314006,2453.2,2452.5,8.929562]
[1725199739287,0.40768,2453.1,2452.5,9.49251064]
[1725199739489,3.61544,2453.3,2452.7,0.40772]
[1725199739787,3.2078,2453.3,2452.6,0.40774]
[1725199739990,4.27156323,2453.2,2452.5,6.60476064]
[1725199740286,0.40767,2453.1,2452.5,7.01251064]
[1725199740694,0.40769,2453.0,2452.5,6.60476064]
[1725199740989,3.2078,2453.3,2452.5,6.60476064]
[1725199740990,1.01912,2453.2,2452.5,6.60476064]
[1725199741178,3.2078,2453.3,2452.5,6.60476064]
[1725199741179,0.40768,2453.1,2452.5,1.69849864]
[1725199741378,4.30056134,2453.2,2452.5,1.29074864]
[1725199741584,3.2078,2453.3,2452.5,4.49854864]
[1725199742090,3.2078,2453.3,2452.8,0.40771]
[1725199742289,3.2078,2453.3,2452.9,0.4077]
[1725199742592,0.40765,2453.2,2452.9,5.29141001]
[1725199742784,1.01896,2453.6,2452.9,0.18774864]
[1725199742982,1.01896,2453.6,2452.7,3.2078]
[1725199742983,4.35067209,2453.4,2452.7,3.2078]
[1725199743182,3.2078,2453.5,2452.7,3.2078]
[1725199743183,0.40771,2452.8,2452.7,3.39554864]
[1725199743398,3.2078,2453.2,2452.7,3.39554864]
[1725199743580,0.40769,2453.0,2452.7,3.39554864]
[1725199743779,0.40767,2453.1,2452.7,3.39554864]
[1725199743979,8.00101576,2453.2,2452.7,3.80326864]
[1725199744193,3.61545,2453.2,2452.8,0.4077]
[1725199744390,0.40767,2453.1,2452.7,3.39554864]
[1725199744595,3.2078,2453.2,2452.7,3.39554864]
[1725199744796,0.40771,2452.8,2452.7,3.39554864]
[1725199745192,0.40771,2452.8,2452.7,3.2078]
[1725199745799,0.4077,2452.9,2452.7,3.2078]
[1725199746092,0.00611945,2453.7,2452.8,4.0768]
[1725199746295,0.00611945,2453.7,2452.8,0.18774864]
[1725199746493,0.4076,2453.5,2453.1,0.40765]
[1725199746686,0.4076,2453.5,2452.9,5.36950763]
[1725199746892,4.28034513,2453.6,2452.9,0.18774864]
[1725199747087,0.40764,2453.3,2452.9,0.59543864]
[1725199747290,0.40768,2453.0,2452.9,0.18774864]
[1725199747885,3.2078,2453.5,2452.6,3.2078]
[1725199748095,3.2078,2453.2,2452.6,3.39554864]
[1725199748293,4.47936685,2453.0,2452.6,3.39554864]
[1725199748598,0.40773,2452.7,2452.6,3.39554864]
[1725199748788,0.40773,2452.7,2452.6,3.2078]
[1725199749300,0.40771,2452.9,2452.6,3.39554864]
[1725199749491,0.40769,2453.0,2452.6,3.39554864]
[1725199749794,1.01908,2453.3,2452.6,3.39554864]
[1725199749999,4.50348289,2452.9,2452.6,3.39554864]
[1725199750298,0.40772,2452.8,2452.6,3.39554864]
[1725199750497,0.40773,2452.7,2452.6,3.39554864]
[1725199750886,4.35047281,2453.1,2452.6,3.39554864]
[1725199751192,0.40769,2453.0,2452.6,3.39554864]
[1725199751390,4.75814281,2453.1,2452.6,3.39554864]
[1725199751588,3.61545,2453.2,2452.8,0.40771]
[1725199751795,3.2078,2453.2,2452.7,5.38351523]
[1725199751994,3.2078,2453.2,2452.7,5.57126387]
[1725199752210,3.2078,2453.2,2452.9,0.40769]
[1725199752392,0.40762,2453.4,2453.0,0.40767]
[1725199752697,0.00611945,2453.7,2453.1,3.2078]
[1725199752893,0.00611945,2453.7,2453.0,5.37468776]
[1725199752894,0.00611945,2453.7,2453.0,0.18774864]
[1725199753096,0.40762,2453.4,2453.0,0.59542864]
[1725199753298,0.4076,2453.5,2453.1,5.66744474]
[1725199753494,0.00611945,2453.7,2453.3,3.2078]
[1725199753687,0.00611945,2453.7,2453.6,0.40758]
[1725199753889,0.40747,2454.3,2453.8,0.40754]
[1725199754096,0.40746,2454.4,2453.9,0.40753]
[1725199754302,0.40746,2454.3,2453.9,0.59527864]
[1725199754500,0.40746,2454.4,2453.9,0.59527864]
[1725199754803,1.01862,2454.4,2453.9,3.39554864]
[1725199755011,0.40751,2454.0,2453.9,0.00611945]
[1725199755304,4.48271,2454.0,2453.9,0.00611945]
[1725199755493,15.33863391,2454.0,2453.4,3.2078]
[1725199755798,0.40761,2453.5,2453.4,0.18774864]
[1725199756000,5.28665748,2454.0,2453.4,0.18774864]
[1725199756187,0.40755,2453.8,2453.4,0.59535864]
[1725199756395,5.26853357,2454.2,2453.4,0.18774864]
[1725199756701,0.40751,2454.1,2453.6,0.41368945]
[1725199756901,0.40751,2454.1,2453.7,0.40756]
[1725199757100,0.00611945,2454.4,2453.7,5.38430441]
[1725199757306,0.4075,2454.1,2453.7,5.79186441]
[1725199757488,0.40749,2454.2,2453.8,0.40754]
[1725199757992,0.40756,2453.7,2453.6,0.00611945]
[1725199758193,0.40756,2453.7,2453.6,0.19386809]
[1725199758390,0.40755,2453.8,2453.6,0.19386809]
[1725199758603,0.40752,2454.0,2453.6,0.19386809]
[1725199758793,0.40747,2454.3,2453.8,0.40754]
[1725199759110,0.00611945,2454.4,2453.8,0.40754]
[1725199759306,1.04813302,2454.4,2453.8,0.59528864]
[1725199759492,0.40746,2454.3,2453.8,0.59528864]
[1725199760206,0.41356945,2454.4,2453.9,0.40753]
[1725199760403,0.00611945,2454.4,2454.0,0.40751]
[1725199760607,0.00611945,2454.4,2453.9,8.64004663]
[1725199761003,1.04201357,2455.0,2454.3,3.2078]
[1725199761202,1.04201357,2455.3,2454.4,0.3792]
[1725199761407,0.40737,2454.9,2454.4,5.65042795]
[1725199761593,0.40737,2454.9,2454.4,5.83817659]
[1725199761999,0.40737,2454.9,2454.5,0.40741]
[1725199762000,0.00611945,2454.9,2454.5,0.40741]
[1725199762198,0.00611945,2454.9,2454.6,0.40741]
[1725199762396,0.00611945,2454.9,2454.6,5.22017392]
[1725199762591,0.41348945,2454.9,2454.6,0.18774864]
[1725199762802,0.40738,2454.8,2454.6,0.18774864]
[1725199763004,0.00611945,2454.9,2454.6,0.18774864]
[1725199763410,0.40738,2454.8,2454.6,0.18774864]
[1725199763707,0.41348945,2454.9,2454.6,0.18774864]
[1725199763906,0.4074,2454.8,2454.6,0.18774864]
[1725199764111,0.40739,2454.8,2454.6,0.18774864]
[1725199764402,0.41348945,2454.9,2454.6,0.18774864]
[1725199765506,0.40738,2454.8,2454.6,0.18774864]
[1725199765812,0.00611945,2454.9,2454.6,0.18774864]
[1725199765995,0.41348945,2454.9,2454.6,0.18774864]
[1725199766610,0.40738,2454.8,2454.6,0.18774864]
[1725199767108,0.41348945,2454.9,2454.6,0.18774864]
[1725199767903,0.00611945,2454.9,2454.6,0.59514864]
[1725199768302,0.00611945,2454.9,2454.8,0.40738]
[1725199768499,0.00611945,2454.9,2454.8,3.61518]
[1725199768700,0.00611945,2454.9,2454.8,13.25641558]
[1725199768899,0.40727,2455.5,2455.0,0.40734]
[1725199769101,0.40726,2455.6,2455.1,0.40732]
[1725199769303,0.40724,2455.7,2455.2,0.79631]
[1725199769497,0.40725,2455.6,2455.2,0.79631]
[1725199769709,3.2078,2455.8,2455.2,0.57674864]
[1725199769903,0.40728,2455.4,2455.3,0.00611945]
[1725199770114,0.40728,2455.4,2454.6,0.3823]
[1725199770115,1.01825,2455.3,2454.6,0.3823]
[1725199770305,4.66344503,2455.7,2454.6,0.3823]
[1725199770306,0.4074,2454.7,2454.6,0.3823]
[1725199770614,0.40739,2454.8,2454.6,0.57004864]
[1725199770904,3.2078,2455.1,2454.6,0.57004864]
[1725199770905,0.40737,2454.9,2454.6,0.57004864]
[1725199771099,3.2078,2455.1,2454.6,4.64364864]
[1725199771295,3.61514,2455.1,2454.7,0.40739]
[1725199771499,3.61514,2455.1,2454.6,0.57004864]
[1725199771500,3.2078,2455.1,2454.8,0.40738]
[1725199771702,0.40732,2455.2,2454.8,0.40738]
[1725199771906,0.7263,2455.6,2454.8,0.40738]
[1725199771907,3.21171592,2455.7,2454.8,12.70427862]
[1725199772213,0.40726,2455.6,2454.8,3.39554864]
[1725199772413,0.40729,2455.4,2455.0,0.40734]
[1725199772597,0.00391592,2455.7,2455.0,0.40734]
[1725199772598,4.37733656,2455.5,2455.0,0.18774864]
[1725199772797,0.40732,2455.2,2455.0,0.18774864]
[1725199773099,0.40733,2455.1,2455.0,0.18774864]
[1725199773604,0.40741,2454.6,2454.5,0.00611945]
[1725199773908,1.42595,2454.6,2454.5,9.45e-06]
[1725199774102,5.50035,2454.6,2454.5,9.45e-06]
[1725199774404,15.76273807,2454.6,2454.5,9.45e-06]
[1725199774603,16.78127807,2454.6,2454.5,9.45e-06]
[1725199775413,18.34612405,2454.6,2454.5,9.45e-06]
[1725199775597,59.14612405,2454.6,2454.5,9.45e-06]
[1725199775798,59.14607224,2454.6,2454.5,9.45e-06]
[1725199776006,49.54419807,2454.6,2454.5,9.45e-06]
[1725199776203,8.74419807,2454.6,2454.5,9.45e-06]
[1725199776510,4.66979807,2454.6,2454.5,9.45e-06]
[1725199776709,0.40741,2454.6,2454.5,9.45e-06]
[1725199776900,11.50035,2454.6,2454.5,9.45e-06]
[1725199777102,8.9596359,2454.6,2454.5,9.45e-06]
[1725199777295,5.50035,2454.6,2454.5,9.45e-06]
[1725199777500,15.9781759,2454.6,2454.5,9.45e-06]
[1725199778407,5.50035,2454.6,2454.5,9.45e-06]
[1725199778601,16.02696356,2454.6,2454.5,9.45e-06]
[1725199779003,3.2078,2454.7,2454.5,9.45e-06]
[1725199779207,0.40741,2454.6,2454.5,9.45e-06]
[1725199779414,9.08346859,2454.6,2454.5,9.45e-06]
[1725199779619,4.60245859,2454.6,2454.5,9.45e-06]
[1725199779910,3.2078,2454.7,2454.5,9.45e-06]
[1725199780908,3.2078,2455.2,2454.6,4.0736]
[1725199781108,3.61513,2455.2,2454.6,3.9705]
[1725199781515,0.40733,2455.1,2454.6,3.97051]
[1725199781706,3.2078,2455.2,2454.7,5.18981158]
[1725199782019,3.61512,2455.2,2454.7,5.59720158]
[1725199782209,0.40727,2455.5,2455.0,0.40734]
[1725199782600,0.40727,2455.5,2454.7,5.18981158]
[1725199782804,0.40726,2455.6,2455.1,0.40733]
[1725199783011,0.41115592,2455.7,2455.2,0.40731]
[1725199783209,0.00391592,2455.7,2455.2,5.39069172]
[1725199783403,0.00391592,2455.7,2455.3,0.4073]
[1725199783607,0.00391592,2455.7,2455.3,0.7991]
[1725199783806,0.40726,2455.6,2455.3,0.3918]
[1725199784014,3.2078,2455.6,2454.8,0.4439]
[1725199784207,0.40733,2455.2,2454.8,0.85128]
[1725199784511,0.40726,2455.6,2454.9,5.33862482]
[1725199784711,0.00391592,2455.7,2454.9,8.54642482]
[1725199785020,0.40732,2455.2,2454.9,5.33862482]
[1725199785218,7.7389093,2455.6,2454.8,0.4439]
[1725199785219,4.5311093,2455.6,2454.8,0.4439]
[1725199785515,0.40731,2455.3,2454.8,0.85127]
[1725199785707,0.40735,2455.0,2454.6,3.5996]
[1725199785903,0.40738,2454.9,2454.6,3.5996]
[1725199786115,3.2078,2455.2,2454.6,3.5996]
[1725199786116,0.4074,2454.7,2454.6,3.5996]
[1725199786315,0.40741,2454.6,2454.5,9.45e-06]
[1725199786613,0.40739,2454.8,2454.5,9.45e-06]
[1725199786814,5.50777091,2455.1,2454.5,9.45e-06]
[1725199787006,1.42595,2454.6,2454.5,9.45e-06]
[1725199787506,5.50035,2454.6,2454.5,9.45e-06]
[1725199787710,4.48181,2454.6,2454.5,9.45e-06]
[1725199788210,0.4074,2454.7,2454.5,9.45e-06]
[1725199788404,0.40739,2454.8,2454.5,9.45e-06]
[1725199788722,0.489,2455.0,2454.5,9.45e-06]
[1725199788723,0.40736,2455.0,2454.5,9.45e-06]
[1725199789014,0.40736,2455.0,2454.5,0.40742945]
[1725199789220,0.40734,2455.1,2454.5,9.45e-06]
[1725199789513,0.40734,2455.1,2454.6,5.69254805]
[1725199789817,0.40732,2455.2,2454.7,0.4074]
[1725199790019,0.40733,2455.1,2454.7,0.40739]
[1725199790215,4.34538047,2455.5,2454.8,5.23103775]
[1725199790722,0.40738,2454.8,2454.7,5.23103775]
[1725199790914,0.40738,2454.8,2454.6,0.4677]
[1725199791326,0.40741,2454.7,2454.5,9.45e-06]
[1725199791816,0.40739,2454.8,2454.5,9.45e-06]
[1725199792815,3.2078,2455.3,2454.5,0.40742945]
[1725199793022,0.40736,2455.0,2454.5,0.40742945]
[1725199793219,0.40731,2455.2,2454.5,9.45e-06]
[1725199793419,0.40731,2455.2,2454.7,0.4074]
[1725199793721,0.40731,2455.2,2454.8,5.26666214]
[1725199793922,3.2078,2455.3,2454.8,5.26666214]
[1725199794119,3.2078,2455.3,2454.7,3.61519]
[1725199794323,3.2078,2455.3,2454.7,3.2078]
[1725199794324,0.0202,2455.0,2454.7,3.2078]
[1725199794527,0.42755,2455.0,2454.8,5.26643469]
[1725199794722,0.0202,2455.0,2454.8,5.26643469]
[1725199794927,0.0202,2455.0,2454.8,9.74740469]
[1725199795728,0.0202,2455.0,2454.8,9.34003469]
[1725199795925,0.0202,2455.0,2454.7,3.2078]
[1725199796114,0.40738,2454.8,2454.7,3.2078]
[1725199797436,0.40738,2454.8,2454.5,9.45e-06]
[1725199797437,0.40741,2454.6,2454.5,9.45e-06]
[1725199797620,4.51145945,2454.8,2454.5,9.45e-06]
[1725199797817,0.40739,2454.8,2454.5,9.45e-06]
[1725199798022,0.40737,2454.9,2454.5,0.40742945]
[1725199798430,0.40738,2454.8,2454.5,9.45e-06]
[1725199798619,0.40741,2454.6,2454.5,9.45e-06]
[1725199800621,6.54367834,2454.6,2454.5,9.45e-06]
[1725199800828,6.55004354,2454.6,2454.5,9.45e-06]
[1725199801023,7.06514417,2454.6,2454.5,9.45e-06]
[1725199801225,11.56989131,2454.6,2454.5,9.45e-06]
[1725199801425,21.29611692,2454.6,2454.5,9.45e-06]
[1725199801628,22.31465692,2454.6,2454.5,9.45e-06]
[1725199801827,22.85190029,2454.6,2454.5,9.45e-06]
[1725199802030,20.23143714,2454.6,2454.5,9.45e-06]
[1725199802333,20.23143714,2454.6,2453.5,0.4857]
[1725199802334,0.40753,2453.9,2453.5,0.4857]
[1725199802534,0.04039055,2454.0,2453.5,0.4857]
[1725199802734,0.4076,2453.5,2453.4,3.2078]
[1725199802937,0.4076,2453.5,2452.7,1.59124883]
[1725199802938,0.4076,2453.5,2453.1,3.2078]
[1725199803137,0.40765,2453.2,2453.1,3.2078]
[1725199803340,0.40771,2452.8,2452.5,0.4646]
[1725199803728,0.4077,2452.9,2452.5,0.4646]
[1725199804536,4.58445956,2453.2,2452.4,0.00611945]
[1725199804537,0.40774,2452.7,2452.4,0.00611945]
[1725199805324,0.40776,2452.5,2452.4,0.00611945]
[1725199805523,4.61118629,2452.6,2452.4,0.00611945]
[1725199805827,0.40776,2452.5,2452.4,0.00611945]
[1725199806027,0.40782,2452.2,2451.6,3.19371945]
[1725199806231,0.40782,2452.2,2451.6,3.58142945]
[1725199806441,0.40782,2452.2,2451.6,3.17351945]
[1725199806734,0.40782,2452.2,2451.5,3.2078]
[1725199806937,5.09048348,2452.5,2451.7,5.41772469]
[1725199807123,0.40782,2452.2,2451.9,0.00611945]
[1725199807328,3.21391945,2452.3,2451.9,0.00611945]
[1725199807642,3.21391945,2452.3,2451.0,0.40801]
[1725199807643,0.40787,2451.9,2451.0,0.40801]
[1725199807826,0.40788,2451.8,2451.5,3.1674]
[1725199808022,5.03933343,2451.8,2451.5,3.1674]
[1725199808223,3.2078,2451.7,2450.9,3.2078]
[1725199808426,0.40796,2451.4,2450.9,3.2078]
[1725199808635,3.2078,2451.4,2450.5,3.2078]
[1725199808831,3.2078,2451.4,2450.7,0.00611945]
[1725199808832,4.63145343,2451.3,2450.7,0.00611945]
[1725199809030,0.00611945,2451.2,2450.7,0.00611945]
[1725199809435,0.40805,2450.8,2450.7,0.00611945]
[1725199809636,3.2078,2450.8,2449.4,3.2078]
[1725199809848,3.2078,2450.8,2449.4,3.61606]
[1725199809849,3.2078,2450.7,2449.4,3.61606]
[1725199810134,3.2078,2450.7,2449.5,5.74222257]
[1725199810135,0.40811,2450.4,2449.5,5.74222257]
[1725199810338,3.61605,2449.6,2449.5,1.31612092]
[1725199810528,3.2078,2449.6,2448.2,1.61086348]
[1725199810726,0.00611945,2449.1,2448.7,0.00611945]
[1725199811243,11.63449986,2449.0,2448.7,0.00611945]
[1725199811443,0.40838,2448.8,2448.7,0.00611945]
[1725199811831,14.83587986,2448.8,2448.7,0.00611945]
[1725199812033,8.42749986,2448.8,2448.7,0.00611945]
[1725199812234,0.00611945,2449.1,2448.7,3.21391945]
[1725199812834,0.00611945,2449.1,2448.7,0.00611945]
[1725199812835,4.29145449,2449.0,2448.7,0.00611945]
[1725199813030,0.00611945,2449.1,2448.7,0.00611945]
[1725199813637,0.00611945,2449.1,2448.7,7.29711945]
[1725199814139,0.00611945,2449.1,2448.7,4.49771945]
[1725199814342,3.2078,2449.8,2449.0,3.2078]
[1725199814541,3.2078,2449.8,2449.3,3.2078]
[1725199815234,0.40813,2450.3,2449.3,3.2078]
[1725199815235,3.2078,2450.3,2449.5,0.40826]
[1725199815436,3.2078,2450.3,2449.0,3.2078]
[1725199815437,0.00611945,2450.1,2449.0,3.2078]
[1725199815742,3.2078,2449.7,2449.0,3.2078]
[1725199816036,4.66526737,2450.0,2449.0,3.2078]
[1725199816037,3.2078,2449.4,2449.0,3.2078]
[1725199816238,0.40831,2449.3,2448.8,1.0428]
[1725199816438,4.82723788,2449.3,2448.8,1.0428]
[1725199816639,4.82723788,2449.3,2448.7,0.00611945]
[1725199816640,3.2078,2449.1,2448.7,0.00611945]
[1725199816836,3.2078,2448.8,2448.7,0.00611945]
[1725199817247,13.85980483,2448.8,2448.7,0.00611945]
[1725199817833,0.40846,2448.3,2448.2,1.15483897]
[1725199818040,0.40846,2448.3,2447.1,3.2078]
[1725199818041,4.22896,2448.3,2447.1,3.2078]
[1725199818242,0.4086,2447.5,2447.1,3.2078]
[1725199818445,3.2078,2447.2,2446.3,14.14374495]
[1725199818635,0.39,2447.9,2445.3,0.4088]
[1725199818636,4.31897191,2447.4,2447.2,0.40863]
[1725199818835,4.31897191,2447.4,2447.1,0.00611945]
[1725199819041,0.00611945,2447.5,2447.1,0.00611945]
[1725199819239,4.27498068,2447.4,2447.1,0.41476945]
[1725199819437,4.27498068,2447.4,2447.2,8.6355917]
[1725199819640,3.2078,2448.2,2447.2,9.5141917]
[1725199819845,3.2078,2448.2,2447.9,0.40853]
[1725199820040,0.20894583,2450.8,2448.0,0.40851]
[1725199820041,4.54592516,2448.1,2448.0,0.40851]
[1725199820344,3.2078,2448.6,2448.5,0.40843]
[1725199820534,4.54592516,2449.1,2448.0,8.6355917]
[1725199820535,4.54592516,2449.1,2448.3,3.2078]
[1725199820736,0.40825,2449.6,2448.8,0.40837]